[Event "Pervenstvo PFO 2023_Y19_Rapid"]
[Site "Samara region, Russia"]
[Date "2023.11.11"]
[Round "9.8"]
[White "Babkov, Timofey"]
[Black "Rekonchishek, Egor"]
[Result "1-0"]
[TimeControl "10:5"]
[WhiteFideId "54135931"]
[BlackFideId "34221476"]
[WhiteElo "1855"]
[BlackElo "1569"]

1. e4 {[%emt 00:00:29]} e6 2. d4 d5 3. Nc3 {[%emt 00:00:02]} Nf6 {[%emt
00:00:01]} 4. Bg5 {[%emt 00:00:02]} dxe4 {[%emt 00:00:05]} 5. Nxe4 {[%emt
00:00:02]} Nbd7 6. Nf3 {[%emt 00:00:07]} Be7 {[%emt 00:00:06]} 7. Nxf6+ {[%emt
00:00:02]} Nxf6 {[%emt 00:00:01]} 8. Bd3 {[%emt 00:00:04]} O-O {[%emt
00:00:08]} 9. O-O {[%emt 00:00:02]} c5 {[%emt 00:00:14]} 10. c3 {[%emt
00:00:02]} cxd4 {[%emt 00:00:05]} 11. Nxd4 {[%emt 00:00:07]} a6 12. Re1 {[%emt
00:00:33]} h6 {[%emt 00:00:02]} 13. Bh4 Bd7 {[%emt 00:01:23]} 14. Qf3 {[%emt
00:00:14]} Qb6 {[%emt 00:00:40]} 15. Nf5 {[%emt 00:00:52]} Bd8 {[%emt
00:01:59]} 16. Nxh6+ {[%emt 00:00:07]} gxh6 {[%emt 00:00:29]} 17. Bxf6 {[%emt
00:00:04]} Bxf6 {[%emt 00:01:02]} 18. Qxf6 {[%emt 00:00:02]} Qd8 {[%emt
00:00:44]} 19. Qxh6 {[%emt 00:00:05]} f5 {[%emt 00:00:02]} 20. Re3 {[%emt
00:00:05]} Qf6 {[%emt 00:00:27]} 21. Rg3+ {[%emt 00:00:03]} Kf7 22. Qh7+ {[%emt
00:00:05]} Ke8 {[%emt 00:00:01]} 23. Rg7 {[%emt 00:00:43]} Bc6 {[%emt
00:00:04]} 24. Rd1 {[%emt 00:00:24]} Rd8 {[%emt 00:00:04]} 25. Qh5+ {[%emt
00:00:02]} Rf7 {[%emt 00:00:05]} 26. Rg8+ {[%emt 00:00:09]} Ke7 {[%emt
00:00:12]} 27. Rxd8 {[%emt 00:00:02]} Kxd8 28. Bb5+ {[%emt 00:00:17]} Kc7
{[%emt 00:00:05]} 29. Bxc6 {[%emt 00:00:03]} bxc6 {[%emt 00:00:01]} 30. Qe2
{[%emt 00:00:04]} Kb7 {[%emt 00:00:33]} 31. Rd4 {[%emt 00:00:04]} e5 {[%emt
00:01:05]} 32. Rb4+ {[%emt 00:00:01]} Ka7 {[%emt 00:00:15]} 33. Qe3+ {[%emt
00:00:02]} Ka8 {[%emt 00:00:09]} 34. Qb6 {[%emt 00:00:02]} 1-0

[Event "Pervenstvo PFO 2023_Y19_Rapid"]
[Site "Samara region, Russia"]
[Date "2023.11.11"]
[Round "9.9"]
[White "Siyalov, Mikhail"]
[Black "Kononenko, Nikita"]
[Result "0-1"]
[TimeControl "10:5"]
[WhiteFideId "24276359"]
[BlackFideId "54175682"]
[WhiteElo "1691"]
[BlackElo "1774"]

1. e4 {[%clk 00:10:08]} {[%emt 00:00:01]} e5 {[%clk 00:10:09]} {[%emt
00:00:01]} 2. Nf3 {[%clk 00:10:13]} {[%emt 00:00:01]} Nc6 {[%clk 00:10:14]} 3.
Bb5 {[%clk 00:10:16]} {[%emt 00:00:02]} a6 {[%clk 00:10:16]} {[%emt 00:00:03]}
4. Bxc6 {[%clk 00:10:19]} {[%emt 00:00:01]} dxc6 {[%clk 00:10:16]} {[%emt
00:00:06]} 5. O-O {[%clk 00:10:22]} {[%emt 00:00:02]} Bg4 {[%clk 00:09:57]}
{[%emt 00:00:24]} 6. d3 {[%clk 00:10:25]} {[%emt 00:00:02]} Bd6 {[%clk
00:08:34]} {[%emt 00:01:28]} 7. Nbd2 {[%clk 00:10:24]} {[%emt 00:00:06]} Qf6
{[%clk 00:08:34]} {[%emt 00:00:04]} 8. h3 {[%clk 00:10:25]} {[%emt 00:00:04]}
h5 {[%clk 00:08:27]} {[%emt 00:00:12]} 9. Nc4 {[%clk 00:10:18]} {[%emt
00:00:12]} Bxf3 {[%clk 00:08:20]} {[%emt 00:00:12]} 10. Qxf3 {[%clk 00:10:21]}
{[%emt 00:00:03]} Qxf3 {[%clk 00:08:24]} 11. gxf3 {[%clk 00:10:24]} {[%emt
00:00:02]} Ne7 {[%clk 00:08:22]} {[%emt 00:00:06]} 12. f4 {[%clk 00:10:18]}
{[%emt 00:00:11]} exf4 {[%clk 00:07:22]} {[%emt 00:01:05]} 13. Nxd6+ {[%clk
00:10:18]} {[%emt 00:00:05]} cxd6 {[%clk 00:07:25]} {[%emt 00:00:02]} 14. Bxf4
{[%clk 00:10:21]} {[%emt 00:00:02]} Kd7 {[%clk 00:07:28]} {[%emt 00:00:03]} 15.
Bd2 {[%clk 00:09:56]} {[%emt 00:00:29]} g5 {[%clk 00:07:19]} {[%emt 00:00:14]}
16. f4 {[%clk 00:09:23]} {[%emt 00:00:40]} g4 {[%clk 00:05:45]} {[%emt
00:01:38]} 17. Kg2 {[%clk 00:07:03]} {[%emt 00:02:25]} f5 {[%clk 00:05:43]}
{[%emt 00:00:07]} 18. h4 {[%clk 00:06:32]} {[%emt 00:00:36]} Rhf8 {[%clk
00:05:12]} {[%emt 00:00:36]} 19. Kg3 {[%clk 00:06:24]} {[%emt 00:00:13]} Rae8
{[%clk 00:05:16]} {[%emt 00:00:01]} 20. Rae1 {[%clk 00:06:15]} {[%emt
00:00:13]} fxe4 {[%clk 00:04:20]} {[%emt 00:01:03]} 21. dxe4 {[%clk 00:06:17]}
{[%emt 00:00:02]} d5 {[%clk 00:04:24]} 22. f5 {[%clk 00:04:18]} {[%emt
00:02:04]} dxe4 {[%clk 00:04:28]} {[%emt 00:00:01]} 23. f6 {[%clk 00:04:23]}
Nd5 {[%clk 00:04:31]} {[%emt 00:00:02]} 24. f7 {[%clk 00:04:18]} {[%emt
00:00:10]} Re7 {[%clk 00:04:27]} {[%emt 00:00:09]} 25. c4 {[%clk 00:04:19]}
{[%emt 00:00:04]} e3 {[%clk 00:04:31]} 26. Ba5 {[%clk 00:03:58]} {[%emt
00:00:26]} b6 {[%clk 00:02:37]} {[%emt 00:01:59]} 27. cxd5 {[%clk 00:04:01]}
{[%emt 00:00:02]} bxa5 {[%clk 00:02:41]} 28. dxc6+ {[%clk 00:04:03]} {[%emt
00:00:03]} Kxc6 {[%clk 00:02:46]} 29. Rf6+ {[%clk 00:03:51]} {[%emt 00:00:16]}
Kb7 {[%clk 00:01:24]} {[%emt 00:01:28]} 30. Re2 {[%clk 00:03:44]} {[%emt
00:00:12]} Rfxf7 {[%clk 00:01:05]} {[%emt 00:00:24]} 31. Rxf7 {[%clk 00:03:47]}
Rxf7 {[%clk 00:01:10]} 32. Rxe3 {[%clk 00:03:51]} {[%emt 00:00:02]} Rf5 {[%clk
00:01:14]} 33. Kg2 {[%clk 00:03:13]} {[%emt 00:00:43]} Kb6 {[%clk 00:01:16]}
{[%emt 00:00:03]} 34. Re6+ {[%clk 00:03:11]} {[%emt 00:00:07]} Kb5 {[%clk
00:01:18]} {[%emt 00:00:03]} 35. Rg6 {[%clk 00:03:11]} {[%emt 00:00:05]} Rd5
{[%clk 00:00:45]} {[%emt 00:00:37]} 36. Kg3 {[%clk 00:02:13]} {[%emt 00:01:03]}
a4 {[%clk 00:00:34]} {[%emt 00:00:17]} 37. Kf4 {[%clk 00:01:58]} {[%emt
00:00:20]} a5 {[%clk 00:00:09]} {[%emt 00:00:30]} 38. Ke4 {[%clk 00:01:48]}
{[%emt 00:00:15]} Kc5 {[%clk 00:00:10]} {[%emt 00:00:04]} 39. Ra6 {[%clk
00:01:40]} {[%emt 00:00:13]} Rd4+ {[%clk 00:00:07]} {[%emt 00:00:08]} 40. Ke3
{[%clk 00:01:42]} {[%emt 00:00:03]} Kb5 {[%clk 00:00:08]} {[%emt 00:00:04]} 41.
Rg6 {[%clk 00:01:41]} {[%emt 00:00:07]} Rd5 {[%clk 00:00:10]} {[%emt 00:00:03]}
42. Ke4 {[%clk 00:01:32]} {[%emt 00:00:13]} Rc5 {[%clk 00:00:10]} {[%emt
00:00:04]} 43. Rg5 {[%clk 00:01:27]} {[%emt 00:00:11]} Kc4 {[%clk 00:00:06]}
{[%emt 00:00:09]} 44. Ke3 {[%clk 00:00:21]} {[%emt 00:01:10]} Rb5 {[%clk
00:00:06]} {[%emt 00:00:05]} 45. Ke4 {[%clk 00:00:13]} {[%emt 00:00:13]} Rc5
{[%clk 00:00:09]} {[%emt 00:00:03]} 46. Ke3 {[%clk 00:00:14]} {[%emt 00:00:04]}
Rxg5 {[%clk 00:00:12]} {[%emt 00:00:02]} 47. hxg5 {[%clk 00:00:16]} {[%emt
00:00:02]} Kd5 {[%clk 00:00:17]} 48. Kf4 {[%clk 00:00:15]} {[%emt 00:00:06]}
Ke6 {[%clk 00:00:21]} 49. Kg3 {[%clk 00:00:14]} {[%emt 00:00:07]} Kf5 {[%clk
00:00:25]} {[%emt 00:00:01]} 50. Kh4 {[%clk 00:00:18]} Kg6 {[%clk 00:00:29]} 51.
a3 {[%clk 00:00:19]} {[%emt 00:00:05]} Kg7 {[%clk 00:00:33]} {[%emt 00:00:01]}
0-1

[Event "Pervenstvo PFO 2023_Y19_Rapid"]
[Site "Samara region, Russia"]
[Date "2023.11.11"]
[Round "9.10"]
[White "Azizyan, Levon"]
[Black "Kurulev, Egor"]
[Result "1/2-1/2"]
[TimeControl "10:5"]
[WhiteFideId "44151888"]
[BlackFideId "34187097"]
[WhiteElo "1940"]
[BlackElo "1332"]

1. b3 {[%clk 00:10:08]} {[%emt 00:00:01]} d5 {[%clk 00:10:09]} {[%emt
00:00:02]} 2. Bb2 {[%clk 00:10:12]} Nf6 {[%clk 00:10:12]} {[%emt 00:00:02]} 3.
e3 {[%clk 00:10:16]} e6 {[%clk 00:10:15]} {[%emt 00:00:02]} 4. f4 {[%clk
00:10:17]} {[%emt 00:00:03]} a6 {[%clk 00:10:18]} {[%emt 00:00:03]} 5. Nf3
{[%clk 00:10:21]} {[%emt 00:00:01]} Be7 {[%clk 00:10:21]} {[%emt 00:00:01]} 6.
Be2 {[%clk 00:10:04]} {[%emt 00:00:22]} O-O {[%clk 00:10:24]} {[%emt 00:00:03]}
7. O-O {[%clk 00:10:05]} {[%emt 00:00:04]} c5 {[%clk 00:10:24]} {[%emt
00:00:05]} 8. Ne5 {[%clk 00:10:03]} {[%emt 00:00:07]} Nc6 {[%clk 00:10:17]}
{[%emt 00:00:12]} 9. Nxc6 {[%clk 00:09:57]} {[%emt 00:00:11]} bxc6 {[%clk
00:10:19]} {[%emt 00:00:01]} 10. d3 {[%clk 00:10:02]} Qb6 {[%clk 00:09:55]}
{[%emt 00:00:31]} 11. c4 {[%clk 00:09:04]} {[%emt 00:01:03]} a5 {[%clk
00:09:43]} {[%emt 00:00:17]} 12. Nc3 {[%clk 00:08:33]} {[%emt 00:00:35]} a4
{[%clk 00:09:30]} {[%emt 00:00:19]} 13. Qc2 {[%clk 00:08:34]} {[%emt 00:00:05]}
a3 {[%clk 00:09:25]} {[%emt 00:00:09]} 14. Bc1 {[%clk 00:08:37]} {[%emt
00:00:01]} Qc7 {[%clk 00:09:23]} {[%emt 00:00:08]} 15. e4 {[%clk 00:08:24]}
{[%emt 00:00:18]} Bb7 {[%clk 00:09:03]} {[%emt 00:00:25]} 16. g4 {[%clk
00:07:54]} {[%emt 00:00:35]} Ne8 {[%clk 00:08:57]} {[%emt 00:00:11]} 17. Bf3
{[%clk 00:07:30]} {[%emt 00:00:29]} Qd7 {[%clk 00:08:29]} {[%emt 00:00:33]} 18.
Bd2 {[%clk 00:06:42]} {[%emt 00:00:52]} Rd8 {[%clk 00:07:57]} {[%emt 00:00:37]}
19. Rad1 {[%clk 00:06:29]} {[%emt 00:00:19]} Nc7 {[%clk 00:07:30]} {[%emt
00:00:32]} 20. Bc1 {[%clk 00:06:31]} {[%emt 00:00:03]} Ra8 {[%clk 00:07:11]}
{[%emt 00:00:24]} 21. Na4 {[%clk 00:06:33]} {[%emt 00:00:03]} Qd8 {[%clk
00:06:49]} {[%emt 00:00:26]} 22. Bxa3 {[%clk 00:06:24]} {[%emt 00:00:15]} f5
{[%clk 00:06:48]} {[%emt 00:00:06]} 23. Bxc5 {[%clk 00:06:14]} {[%emt
00:00:15]} Bxc5+ {[%clk 00:06:10]} {[%emt 00:00:43]} 24. Nxc5 {[%clk 00:06:18]}
{[%emt 00:00:01]} Bc8 {[%clk 00:06:14]} {[%emt 00:00:01]} 25. exf5 {[%clk
00:05:45]} {[%emt 00:00:37]} exf5 {[%clk 00:06:15]} {[%emt 00:00:03]} 26. g5
{[%clk 00:05:49]} Ne6 {[%clk 00:06:03]} {[%emt 00:00:17]} 27. Nxe6 {[%clk
00:05:35]} {[%emt 00:00:19]} Bxe6 {[%clk 00:06:07]} {[%emt 00:00:01]} 28. Rde1
{[%clk 00:05:27]} {[%emt 00:00:13]} Bf7 {[%clk 00:05:51]} {[%emt 00:00:21]} 29.
c5 {[%clk 00:04:57]} {[%emt 00:00:35]} Qc7 {[%clk 00:05:48]} {[%emt 00:00:08]}
30. Re5 {[%clk 00:04:56]} {[%emt 00:00:05]} Rfe8 {[%clk 00:05:25]} {[%emt
00:00:29]} 31. Rfe1 {[%clk 00:04:58]} {[%emt 00:00:03]} Rxe5 {[%clk 00:05:19]}
{[%emt 00:00:10]} 32. Rxe5 {[%clk 00:05:02]} {[%emt 00:00:02]} Qa5 {[%clk
00:05:21]} {[%emt 00:00:03]} 33. Rxf5 {[%clk 00:02:14]} {[%emt 00:02:53]} Qe1+
{[%clk 00:05:17]} {[%emt 00:00:09]} 34. Kg2 {[%clk 00:02:17]} Re8 {[%clk
00:04:55]} {[%emt 00:00:27]} 35. d4 {[%clk 00:01:25]} {[%emt 00:00:57]} Bg6
{[%clk 00:04:52]} {[%emt 00:00:09]} 36. Bg4 {[%clk 00:00:41]} {[%emt 00:00:49]}
Bxf5 {[%clk 00:04:31]} {[%emt 00:00:26]} 37. Qxf5 {[%clk 00:00:44]} {[%emt
00:00:01]} Qd2+ {[%clk 00:04:27]} {[%emt 00:00:08]} 38. Kg3 {[%clk 00:00:48]}
{[%emt 00:00:02]} Re3+ {[%clk 00:04:08]} {[%emt 00:00:24]} 39. Bf3 {[%clk
00:00:48]} {[%emt 00:00:05]} Qe1+ {[%clk 00:03:52]} {[%emt 00:00:21]} 40. Kg2
{[%clk 00:00:51]} Re8 {[%clk 00:02:58]} {[%emt 00:00:59]} 41. Qd7 {[%clk
00:00:32]} {[%emt 00:00:24]} Qe6 {[%clk 00:02:49]} {[%emt 00:00:14]} 42. Qxe6+
{[%clk 00:00:36]} {[%emt 00:00:02]} Rxe6 {[%clk 00:02:52]} 43. Kf2 {[%clk
00:00:34]} {[%emt 00:00:07]} h6 {[%clk 00:02:51]} {[%emt 00:00:07]} 44. h4
{[%clk 00:00:37]} {[%emt 00:00:02]} hxg5 {[%clk 00:02:48]} {[%emt 00:00:08]} 45.
hxg5 {[%clk 00:00:41]} Re7 {[%clk 00:02:50]} {[%emt 00:00:03]} 46. a4 {[%clk
00:00:32]} {[%emt 00:00:14]} Kf7 {[%clk 00:02:47]} {[%emt 00:00:07]} 47. b4
{[%clk 00:00:34]} {[%emt 00:00:04]} Ra7 {[%clk 00:02:45]} {[%emt 00:00:08]} 48.
b5 {[%clk 00:00:38]} Ke6 {[%clk 00:02:41]} {[%emt 00:00:09]} 49. Bg4+ {[%clk
00:00:33]} {[%emt 00:00:10]} Ke7 {[%clk 00:02:44]} {[%emt 00:00:02]} 50. bxc6
{[%clk 00:00:36]} {[%emt 00:00:02]} Kd8 {[%clk 00:02:36]} {[%emt 00:00:12]} 51.
Bd1 {[%clk 00:00:37]} {[%emt 00:00:05]} Kc7 {[%clk 00:02:37]} {[%emt 00:00:04]}
52. Kf3 {[%clk 00:00:36]} {[%emt 00:00:05]} Kxc6 {[%clk 00:02:40]} {[%emt
00:00:03]} 53. Kg4 {[%clk 00:00:41]} Re7 {[%clk 00:02:42]} {[%emt 00:00:03]} 54.
Bf3 {[%clk 00:00:28]} {[%emt 00:00:18]} Re3 {[%clk 00:02:36]} {[%emt 00:00:11]}
55. f5 {[%clk 00:00:24]} {[%emt 00:00:09]} Rd3 {[%clk 00:02:38]} {[%emt
00:00:03]} 56. f6 {[%clk 00:00:15]} {[%emt 00:00:13]} gxf6 {[%clk 00:02:33]}
{[%emt 00:00:09]} 57. g6 {[%clk 00:00:13]} {[%emt 00:00:08]} Rxd4+ {[%clk
00:02:36]} 58. Kf5 {[%clk 00:00:17]} {[%emt 00:00:02]} Rxa4 {[%clk 00:02:40]}
{[%emt 00:00:03]} 59. Ke6 {[%clk 00:00:10]} {[%emt 00:00:11]} Kxc5 {[%clk
00:02:29]} {[%emt 00:00:16]} 60. g7 {[%clk 00:00:11]} {[%emt 00:00:03]} Ra8
{[%clk 00:02:27]} {[%emt 00:00:08]} 61. Bxd5 {[%clk 00:00:15]} {[%emt
00:00:02]} Rg8 {[%clk 00:02:22]} {[%emt 00:00:09]} 62. Kxf6 {[%clk 00:00:18]}
{[%emt 00:00:02]} Rxg7 {[%clk 00:02:25]} {[%emt 00:00:02]} 63. Kxg7 {[%emt
00:00:01]} 1/2-1/2